[Event "Romanian Superleague 2022"]
[Site "Oradea"]
[Date "2022.09.24"]
[Round "4.27"]
[White "Jianu, Vlad-Cristian"]
[Black "Nanu, Costica-Ciprian"]
[Result "1/2-1/2"]
[ECO "D94"]
[WhiteElo "2511"]
[BlackElo "2518"]
[Annotator "TA"]
[PlyCount "215"]
[EventDate "2022.09.21"]
[EventType "team-tourn"]
[EventCountry "ROU"]
[SourceTitle "playchess.com"]
[Source "ChessBase"]
[SourceQuality "1"]
[TimeControl "40/5400+30:1800+30"]

{[%evp 14,215,26,19,23,6,9,-3,-7,-35,16,-18,-18,-31,0,0,0,-6,0,0,0,0,0,-6,-15,-66,-67,-83,-79,-147,-130,-144,-131,-136,-138,-174,-101,-104,-110,-108,-103,-98,-99,-109,-79,-92,-92,-92,-68,-68,-53,-53,-53,-71,-71,-72,-71,-64,-23,-23,-23,-52,-52,-51,-43,-43,-43,-43,-43,-49,-43,-43,-43,-45,-45,-45,-43,-47,-47,-47,-47,-56,-50,-56,-55,-60,-60,-69,-48,-48,-45,-45,-28,-28,-28,-29,-28,-28,-28,-28,-12,-28,-28,-28,-8,-8,-8,-28,-8,-28,-28,-53,-53,-66,-16,-16,-16,-16,-16,-35,-35,-36,-16,-32,-17,-35,-17,-29,-17,-39,-24,-28,-16,-16,0,0,0,0,0,0,0,0,0,0,0,0,0,0,0,0,0,0,0,0,0,0,0,0,0,0,0,0,0,-8,-8,-8,0,-8,-8,-8,0,0,0,0,0,0,0,0,0,0,0,0,8,8,8,0,2,0,0,0,0,0,0,0,0,0,0,0,0,0,0,0,0,0]} 1. d4 {[%emt 0:00:03]} d5 {[%emt 0:00:53]} 2. c4 {[%emt 0:00:06]} c6 {[%emt 0:00:04]} 3. Nc3 {[%emt 0:00:40]} Nf6 {[%emt 0:00:06]} 4. e3 {[%emt 0:00:11]} g6 {[%emt 0:02:22]} 5. Nf3 {[%emt 0:00:12]} Bg7 {[%emt 0:00:24]} 6. Be2 {[%emt 0:00:09]} O-O {[%emt 0:00:11]} 7. O-O {[%emt 0:00:15]} Re8 {[%emt 0:02:08]} 8. h3 {[%emt 0:03:05]} b6 {[%emt 0:05:44]} 9. Bd2 {[%emt 0:04:17]} Bb7 {[%emt 0:00:40]} 10. Qb3 {[%emt 0:04:02]} e6 {[%emt 0:00:21]} 11. a4 {[%emt 0:04:59]} Nbd7 {[%emt 0:00:08]} (11... a5 $1 $15) 12. Rfc1 {[%emt 0:06:12]} dxc4 {[%emt 0:06:43]} 13. Qxc4 {[%emt 0:05:13]} c5 {[%emt 0:01:08]} 14. a5 {[%emt 0:06:59]} Rc8 {[%emt 0:04:34]} 15. Qb3 {[%emt 0:09:23]} Bxf3 {[%emt 0:05:27]} 16. Bxf3 {[%emt 0:00:34]} cxd4 {[%emt 0:00:04]} 17. exd4 {[%emt 0:00:34]} bxa5 {[%emt 0:00:17]} 18. Qa2 {[%emt 0:17:31]} Nb6 {[%emt 0:01:08]} 19. Nb5 {[%emt 0:03:14]} (19. Be3 $11) 19... Qd7 $1 $15 {[%emt 0:02:57]} 20. Be2 {[%emt 0:07:11]} ({Much weaker is} 20. Qxa5 Nc4 21. Rxc4 Rxc4 $17) 20... a4 {[%emt 0:00:46]} 21. Nc3 {[%emt 0:08:25]} ({White should try} 21. Rd1) 21... Qxd4 $17 {[%emt 0:01:47]} 22. Be3 {[%emt 0:00:14]} Qb4 {[%emt 0:06:15]} 23. Nxa4 {[%emt 0:02:43]} Nfd5 {[%emt 0:08:02]} 24. Bc5 {[%emt 0:10:04]} Qxa4 {[%emt 0:00:42]} (24... Qd2 $19 25. Bc4 Nxa4 26. Qxa4 Bxb2) 25. Qxa4 $17 {[%emt 0:00:06]} Nxa4 {[%emt 0:00:05]} 26. Rxa4 {[%emt 0:00:08]} Bxb2 {[%emt 0:03:52]} 27. Rc2 {[%emt 0:00:10]} Be5 {[%emt 0:08:39]} 28. Rxa7 {[%emt 0:01:22]} Nf4 {[%emt 0:05:59]} 29. Bf1 {[%emt 0:02:55]} Bd4 {[%emt 0:06:45]} 30. Ra5 {[%emt 0:00:01]} e5 {[%emt 0:03:39]} 31. Rc4 {[%emt 0:00:01]} Red8 {[%emt 0:04:11]} 32. Be7 {[%emt 0:01:00]} Rxc4 $1 {[%emt 0:01:29]} 33. Bxc4 {[%emt 0:00:21]} Rc8 {[%emt 0:00:10]} 34. Ra4 {[%emt 0:00:27]} Kg7 {[%emt 0:00:37]} 35. Bg5 {[%emt 0:01:20]} Rb8 {[%emt 0:04:46]} 36. Bxf4 {[%emt 0:00:49]} exf4 {[%emt 0:00:01]} 37. Ba2 {[%emt 0:01:47]} Rd8 {[%emt 0:00:37]} 38. Kf1 {[%emt 0:00:07]} f5 {[%emt 0:01:06]} 39. Ke2 {[%emt 0:00:00]} Kh6 {[%emt 0:00:00]} 40. Bc4 {[%emt 0:00:00]} Kg5 {[%emt 0:00:00]} 41. Kf3 {[%emt 0:02:41]} Bc5 {[%emt 0:06:27]} 42. Ra5 {[%emt 0:05:00]} Rc8 {[%emt 0:00:27]} 43. Ba6 {[%emt 0:01:44]} Rc7 {[%emt 0:00:08]} 44. Ra4 {[%emt 0:00:21]} Ra7 {[%emt 0:02:36]} 45. Ra5 {[%emt 0:05:33]} Bb4 {[%emt 0:02:14]} 46. Ra4 {[%emt 0:00:10]} Bd6 {[%emt 0:00:05]} 47. Ra5 {[%emt 0:04:02]} Rc7 {[%emt 0:00:42]} 48. Rd5 {[%emt 0:00:06]} Be7 {[%emt 0:02:46]} 49. g3 {[%emt 0:05:36]} fxg3 {[%emt 0:00:29]} 50. fxg3 {[%emt 0:00:04]} Kf6 {[%emt 0:04:32]} 51. g4 {[%emt 0:01:34]} Ke6 {[%emt 0:00:42]} 52. Rd3 {[%emt 0:00:45]} Bd6 {[%emt 0:00:46]} 53. gxf5+ {[%emt 0:01:46]} gxf5 {[%emt 0:00:22]} 54. Re3+ {[%emt 0:00:14]} Be5 {[%emt 0:00:15]} 55. Rb3 {[%emt 0:00:11]} Kf6 {[%emt 0:05:13]} 56. Bd3 {[%emt 0:00:49]} Rc6 {[%emt 0:03:06]} 57. Ra3 {[%emt 0:01:21]} Bc7 {[%emt 0:01:47]} 58. Rb3 {[%emt 0:05:10]} h5 {[%emt 0:00:52]} 59. Rb5 {[%emt 0:01:04]} Be5 {[%emt 0:00:13]} 60. Ke2 {[%emt 0:01:05]} Ra6 {[%emt 0:02:48]} 61. Bb1 {[%emt 0:00:40]} h4 {[%emt 0:00:48]} 62. Rb3 {[%emt 0:01:25]} Ra5 {[%emt 0:01:23]} 63. Rf3 {[%emt 0:00:09]} f4 {[%emt 0:00:53]} (63... Bd6 $15) 64. Rb3 $11 {[%emt 0:00:05]} Bd6 {[%emt 0:00:36]} 65. Be4 {[%emt 0:01:09]} Re5 {[%emt 0:01:03]} 66. Kf3 {[%emt 0:01:03]} Rg5 {[%emt 0:00:05]} 67. Ke2 {[%emt 0:00:08]} ({Of course not} 67. Rb6 Rg3+ 68. Ke2 Ke5 $17) 67... Bc5 {[%emt 0:00:20]} 68. Rd3 {[%emt 0:02:26]} Ke6 {[%emt 0:00:45]} 69. Kf3 {[%emt 0:00:06]} Bd6 {[%emt 0:00:18]} 70. Ke2 {[%emt 0:00:46]} Rg1 {[%emt 0:00:58]} 71. Kf3 {[%emt 0:00:23]} Rg7 {[%emt 0:01:55]} 72. Ke2 {[%emt 0:00:47]} Ke5 {[%emt 0:00:11]} 73. Bf3 {[%emt 0:00:07]} Ra7 {[%emt 0:00:20]} 74. Rd5+ {[%emt 0:00:54]} Ke6 {[%emt 0:00:06]} 75. Rh5 {[%emt 0:00:15]} Ra2+ {[%emt 0:00:11]} 76. Kf1 {[%emt 0:00:06]} Ra1+ {[%emt 0:01:33]} 77. Kg2 {[%emt 0:00:03]} Ra2+ {[%emt 0:02:18]} 78. Kf1 {[%emt 0:00:02]} Ra3 {[%emt 0:00:11]} 79. Kg2 {[%emt 0:00:55]} Rc3 {[%emt 0:05:01]} 80. Bg4+ {[%emt 0:01:59]} Kf6 {[%emt 0:00:16]} 81. Rxh4 {[%emt 0:00:14]} Ke5 {[%emt 0:00:33]} 82. Rh6 {[%emt 0:00:28]} Rc2+ {[%emt 0:00:20]} 83. Kf3 {[%emt 0:00:24]} Rc3+ {[%emt 0:00:15]} 84. Kg2 {[%emt 0:00:21]} Rg3+ {[%emt 0:00:15]} 85. Kf1 {[%emt 0:00:10]} Bc5 {[%emt 0:00:12]} 86. Re6+ {[%emt 0:00:34]} Kd5 {[%emt 0:00:01]} 87. Rg6 {[%emt 0:01:41]} Ke4 {[%emt 0:02:01]} 88. Ke2 {[%emt 0:00:00]} Rg2+ {[%emt 0:00:18]} 89. Kd1 {[%emt 0:00:12]} Rg3 {[%emt 0:01:18]} 90. Ke2 {[%emt 0:00:17]} Re3+ {[%emt 0:00:08]} 91. Kf1 {[%emt 0:00:13]} Ra3 {[%emt 0:01:22]} 92. Re6+ {[%emt 0:00:18]} Kd5 {[%emt 0:00:13]} 93. Rf6 {[%emt 0:00:41]} Be3 {[%emt 0:00:26]} 94. Ke2 {[%emt 0:00:45]} Ra2+ {[%emt 0:00:11]} 95. Kd3 {[%emt 0:00:08]} Rd2+ {[%emt 0:00:28]} 96. Kc3 {[%emt 0:00:01]} Rf2 {[%emt 0:00:39]} 97. Rf8 {[%emt 0:00:07]} Bc5 {[%emt 0:00:24]} 98. Rf5+ {[%emt 0:00:14]} Kd6 {[%emt 0:00:13]} 99. Rf6+ {[%emt 0:00:08]} Ke7 {[%emt 0:00:44]} 100. Rf5 {[%emt 0:00:02]} Bd6 {[%emt 0:00:17]} 101. Kd3 {[%emt 0:00:06]} Ra2 {[%emt 0:00:29]} 102. Ke4 {[%emt 0:00:39]} Ra4+ {[%emt 0:00:13]} 103. Kd5 {[%emt 0:00:18]} Bb8 {[%emt 0:00:20]} 104. Bh5 {[%emt 0:01:04]} Ra5+ {[%emt 0:00:38]} 105. Ke4 {[%emt 0:00:01]} Ra3 {[%emt 0:00:15]} 106. Bg4 {[%emt 0:00:36]} Ra4+ {[%emt 0:01:20]} 107. Kd5 {[%emt 0:00:01]} Ba7 {[%emt 0:00:39]} 108. Bh5 {[%emt 0:05:13]} 1/2-1/2

[Event "Romanian Superleague 2022"]
[Site "Oradea"]
[Date "2022.09.24"]
[Round "4.28"]
[White "Rogozenco, Dorian"]
[Black "Parligras, Mircea-Emilian"]
[Result "1/2-1/2"]
[ECO "D38"]
[WhiteElo "2438"]
[BlackElo "2560"]
[Annotator "TA"]
[PlyCount "69"]
[EventDate "2022.09.21"]
[EventType "team-tourn"]
[EventCountry "ROU"]
[SourceTitle "playchess.com"]
[Source "ChessBase"]
[SourceQuality "1"]
[TimeControl "40/5400+30:1800+30"]

{[%evp 12,69,27,13,9,16,11,6,16,9,6,8,12,14,0,5,18,16,18,18,17,22,26,23,12,15,15,10,20,18,14,14,15,14,17,18,23,29,34,34,34,34,34,34,34,34,34,34,46,34,34,0,0,0,0,0,0,0,0,0]} 1. d4 {[%emt 0:00:05]} Nf6 {[%emt 0:00:11]} 2. c4 {[%emt 0:00:10]} e6 {[%emt 0:00:10]} 3. Nf3 {[%emt 0:00:21]} d5 {[%emt 0:00:20]} 4. Nc3 {[%emt 0:00:11]} Bb4 {[%emt 0:00:44]} 5. Qa4+ {[%emt 0:01:05]} Nc6 {[%emt 0:00:13]} 6. e3 {[%emt 0:00:16]} O-O {[%emt 0:00:20]} 7. Bd2 {[%emt 0:01:14]} dxc4 {[%emt 0:02:35] D38: Queen's Gambit Declined: Ragozin Defence (4 Nf3 Bb4).} 8. Bxc4 {[%emt 0:00:13]} a6 {[%emt 0:00:04]} 9. Qc2 {[%emt 0:06:57]} Bd6 {[%emt 0:02:37]} 10. a3 $1 {[%emt 0:01:36] 10.a3 scores better than 10.0-0.} e5 {[%emt 0:02:07]} 11. dxe5 {[%emt 0:03:59]} Nxe5 {[%emt 0:00:09]} 12. Nxe5 {[%emt 0:00:04]} Bxe5 {[%emt 0:00:05]} 13. f4 {[%emt 0:01:24]} Bxc3 {[%emt 0:16:29]} 14. Bxc3 {[%emt 0:00:17]} Ng4 {[%emt 0:00:17]} 15. Bd4 {[%emt 0:03:53]} c5 {[%emt 0:00:41]} 16. Bxc5 {[%emt 0:00:19] [#] And now Qb3 would win. This bishop pair is nice.} Re8 $1 {[%emt 0:00:05]} 17. O-O $1 {[%emt 0:02:21]} Nxe3 {[%emt 0:00:20]} 18. Bxe3 {[%emt 0:02:19]} Rxe3 {[%emt 0:00:06]} 19. Rfe1 {[%emt 0:22:35]} Rxe1+ {[%emt 0:12:49]} 20. Rxe1 {[%emt 0:01:05]} b5 {[%emt 0:14:51]} 21. Qe4 {[%emt 0:15:23] [#] White threatens Qe8+ and mate.} Bd7 {[%emt 0:00:22] Inhibits Qe8+.} 22. Bd5 {[%emt 0:01:29]} Rc8 {[%emt 0:03:00]} 23. Qe7 {[%emt 0:05:01] [#]} Qxe7 $146 {[%emt 0:08:13]} ({Predecessor:} 23... Be8 24. b4 h6 25. Qxd8 Rxd8 26. Bf3 Kf8 27. Rd1 Rxd1+ 28. Bxd1 Bc6 29. Kf2 Ke7 {½-½ (36) Pilgram,K (2184)-Lombart,P (2001) LSS email 2020}) 24. Rxe7 {[%emt 0:01:35]} Be6 {[%emt 0:06:52]} 25. Bxe6 $14 {[%emt 0:00:30][%mdl 4096] Endgame KRB-KR} Rc1+ {[%emt 0:00:06]} 26. Kf2 {[%emt 0:00:14][%cal Re7e8]} Rc2+ {[%emt 0:00:03]} 27. Kf3 {[%emt 0:02:14][%cal Re7e8]} fxe6 {[%emt 0:00:06]} 28. Rxe6 {[%emt 0:00:18]} Rxb2 {[%emt 0:00:05]} 29. Rxa6 {[%emt 0:00:05] KR-KR} Rb3+ {[%emt 0:00:33]} 30. Ke4 {[%emt 0:02:59]} Rb2 {[%emt 0:00:22]} 31. Rb6 {[%emt 0:03:58]} Rxg2 {[%emt 0:04:49] The position is equal.} 32. Rxb5 {[%emt 0:00:30]} Ra2 {[%emt 0:00:52]} 33. Rb8+ {[%emt 0:08:48]} Kf7 {[%emt 0:00:06]} 34. Rb7+ {[%emt 0:00:06]} Kf6 {[%emt 0:02:00]} 35. Rb6+ {[%emt 0:14:26] Weighted Error Value: White=0.03 (flawless) /Black=0.02 (flawless)} 1/2-1/2

[Event "Romanian Superleague 2022"]
[Site "Oradea"]
[Date "2022.09.24"]
[Round "4.29"]
[White "Gavrilescu, David"]
[Black "Anton, Teodor"]
[Result "1-0"]
[ECO "B30"]
[WhiteElo "2523"]
[BlackElo "2454"]
[Annotator "TA"]
[PlyCount "71"]
[EventDate "2022.09.21"]
[EventType "team-tourn"]
[EventCountry "ROU"]
[SourceTitle "playchess.com"]
[Source "ChessBase"]
[SourceQuality "1"]
[TimeControl "40/5400+30:1800+30"]

{[%evp 9,71,16,0,0,73,56,65,64,64,65,60,64,62,65,64,61,66,59,74,47,86,91,91,96,105,93,174,173,161,162,203,169,343,224,274,294,280,241,245,235,230,231,316,230,250,244,296,296,372,339,472,461,468,476,529,498,682,726,717,693,1073,987,1050,654]} 1. e4 {[%emt 0:00:11] Finkel,A} c5 {[%emt 0:00:10]} 2. Nf3 {[%emt 0:00:16]} Nc6 {[%emt 0:00:11]} 3. Bb5 {[%emt 0:00:27]} e6 {[%emt 0:00:12]} 4. Bxc6 {[%emt 0:00:38]} bxc6 {[%emt 0:00:06]} 5. d3 {[%emt 0:00:22]} Ne7 {[%emt 0:00:49]} 6. Nbd2 {[%emt 0:00:36][%cal Bb1d2,Bd2c4,Bc4e5][%mdl 32] B30: Sicilian: 2...Nc6 3 Bb5, lines without ...g6.} Ng6 {[%emt 0:00:28] [#]} (6... d5 $11 {keeps the balance.}) 7. h4 $1 $16 {[%emt 0:01:57]} h5 {[%emt 0:00:32]} 8. e5 $1 {[%emt 0:00:52] White is slightly better.} f6 {[%emt 0:00:56]} 9. Qe2 {[%emt 0:02:02]} Qc7 {[%emt 0:02:04][%cal Rg6e5]} 10. Nc4 {[%emt 0:01:51]} Ba6 {[%emt 0:03:42]} 11. Qe4 {[%emt 0:00:10]} Kf7 {[%emt 0:01:25]} 12. Bf4 {[%emt 0:00:40][%cal Oe5f6] And now exf6! would win.} ({Not} 12. exf6 gxf6 13. Ncd2 d5 $17) 12... Nxf4 {[%emt 0:21:16]} 13. Qxf4 {[%emt 0:02:22]} Kg8 {[%emt 0:01:18]} 14. Rh3 {[%emt 0:13:00]} fxe5 {[%emt 0:14:09]} 15. Ncxe5 {[%emt 0:04:28] Pair of Knights!} ({But not} 15. Nfxe5 $6 d5 16. O-O-O Bxc4 17. dxc4 Bd6 $11) 15... d6 {[%emt 0:01:21] [#]} 16. Ng6 $36 {[%emt 0:02:46][%mdl 2048] Keeping Black busy.} Rh6 {[%emt 0:00:19]} 17. Rg3 {[%emt 0:00:34] [#] White is much more active. The black rooks are badly placed.} Qf7 $146 {[%emt 0:07:13] [#]} (17... e5 $16 18. Qg5 Re8) ({Predecessor:} 17... e5 18. Qg5 Rh7 19. Nd2 Re8 20. Ne4 Qd8 21. Nxf8 Rxf8 22. Qxd8 Rxd8 23. Nf6+ Kh8 24. Nxh7 Kxh7 {1-0 (40) Vydeslaver,A (2434)-Mikhalevski,V (2524) Tel Aviv 2002 CBM 093 [Finkel,A]}) 18. Ne7+ $1 $18 {[%emt 0:01:31][%mdl 512]} Bxe7 {[%emt 0:03:11]} 19. Qxh6 {[%emt 0:00:06]} Rb8 {[%emt 0:01:59]} 20. b3 {[%emt 0:09:15]} Bf6 $2 {[%emt 0:01:29]} (20... Rf8 {was called for.} 21. Rg6 Bc8 22. Qxh5 e5) 21. Rd1 {[%emt 0:03:36]} Bc3+ {[%emt 0:05:58]} 22. Kf1 {[%emt 0:04:16]} Rf8 {[%emt 0:01:40]} 23. Kg1 {[%emt 0:10:16] Black must now prevent Rf1.} Bc8 {[%emt 0:07:11]} 24. Rf1 {[%emt 0:15:13] Strongly threatening Rg6.} Bd7 {[%emt 0:01:42]} 25. Qe3 {[%emt 0:02:43]} Qf6 {[%emt 0:08:28]} 26. Rg5 {[%emt 0:03:09]} Be8 {[%emt 0:02:02]} 27. Nd2 {[%emt 0:00:49] aiming for Ne4.} Bxd2 {[%emt 0:06:39]} 28. Qxd2 {[%emt 0:00:07]} Qd4 {[%emt 0:00:15]} 29. Qe3 {[%emt 0:01:57]} e5 {[%emt 0:01:33]} 30. Qg3 {[%emt 0:00:15] White is clearly winning.} Rf7 {[%emt 0:01:41]} 31. Rxh5 {[%emt 0:01:24]} Re7 {[%emt 0:03:03]} 32. Rg5 {[%emt 0:00:59]} Qc3 {[%emt 0:00:58]} 33. h5 {[%emt 0:00:20][%cal Bh4h5,Bh5h6][%mdl 32]} Kh7 {[%emt 0:00:20]} 34. Qf3 {[%emt 0:00:05] Threatens to win with Qf8.} Qd2 {[%emt 0:01:28]} 35. Qf5+ {[%emt 0:00:21]} Kg8 {[%emt 0:00:07]} 36. h6 {[%emt 0:00:05] Black got outplayed after the opening.  Weighted Error Value: White=0.16 (very precise) /Black=0.40} 1-0

[Event "Romanian Superleague 2022"]
[Site "Oradea"]
[Date "2022.09.24"]
[Round "4.30"]
[White "Antal, Hunor-Zoltan"]
[Black "Costachi, Mihnea"]
[Result "0-1"]
[ECO "C70"]
[WhiteElo "2235"]
[BlackElo "2470"]
[Annotator "TA"]
[PlyCount "90"]
[EventDate "2022.09.21"]
[EventType "team-tourn"]
[EventCountry "ROU"]
[SourceTitle "playchess.com"]
[Source "ChessBase"]
[SourceQuality "1"]
[TimeControl "40/5400+30:1800+30"]

{[%evp 9,90,35,50,22,31,8,17,0,7,12,19,29,64,32,23,45,88,45,37,28,33,5,6,-2,0,0,0,-29,0,0,0,0,0,0,0,0,41,-6,0,0,0,0,0,0,0,0,-6,-18,-15,-14,0,-71,-75,-92,-92,-170,-152,-152,-152,-136,-142,-144,-123,-200,-193,-320,-317,-1312,-1266,-1081,-925,-1697,-1458,-4956,-5011,-4952,-4943,-5147,-1921,-29988,-29989,-29989,-29990]} 1. e4 {[%emt 0:00:12]} e5 {[%emt 0:00:06]} 2. Nf3 {[%emt 0:00:06]} Nc6 {[%emt 0:00:31]} 3. Bb5 {[%emt 0:00:09]} a6 {[%emt 0:00:54]} 4. Ba4 {[%emt 0:00:09]} Nge7 {[%emt 0:00:06]} 5. c3 {[%emt 0:00:44]} Ng6 {[%emt 0:01:25]} 6. O-O {[%emt 0:00:57] C70: Ruy Lopez: 3...a6 4 Ba4, Norwegian and Delayed Schliemann.} d5 {[%emt 0:02:16]} 7. d4 {[%emt 0:14:30]} dxe4 {[%emt 0:18:00]} 8. Bxc6+ {[%emt 0:11:54] The position is equal.} bxc6 {[%emt 0:00:07]} 9. Nxe5 {[%emt 0:00:18]} Nxe5 {[%emt 0:13:48]} (9... Bd6 {with more complications.} 10. Qa4 O-O 11. Nxg6 fxg6 12. Qxc6 Rb8) 10. dxe5 {[%emt 0:00:02] [#]} Qd5 $146 {[%emt 0:20:34]} ({Predecessor:} 10... Qxd1 11. Rxd1 Be7 12. Nd2 e3 13. fxe3 Bg4 14. Nf3 Bf5 15. Nd4 Bg4 16. Nf3 Bf5 {½-½ (25) Hayashi,K (1677)-Iglesias,V (1892) ICCF email 2013}) 11. Bf4 {[%emt 0:04:33]} Be7 {[%emt 0:07:00]} 12. Nd2 {[%emt 0:06:29]} g5 {[%emt 0:02:02]} 13. Be3 {[%emt 0:00:41]} Bf5 {[%emt 0:05:41]} 14. Qa4 {[%emt 0:06:20]} O-O {[%emt 0:01:09]} 15. Rfd1 {[%emt 0:05:48][%cal Od2f3]} Qb5 {[%emt 0:07:23]} 16. Qc4 {[%emt 0:08:25]} Rfd8 {[%emt 0:01:19][%cal Od8d2] Threatens to win with ...Rxd2!} 17. a4 {[%emt 0:06:54]} Qd5 {[%emt 0:02:53]} ({But not} 17... Qxb2 18. h3 $14) 18. Qxd5 {[%emt 0:11:10]} (18. b4 {seems wilder.} a5 19. Rdb1 Qxe5 20. Qxc6 Bd6 21. g3) 18... cxd5 {[%emt 0:03:58]} 19. Nb3 {[%emt 0:01:43] Inhibits c5.} c6 {[%emt 0:01:24]} 20. Na5 {[%emt 0:03:50]} Rdc8 {[%emt 0:01:18]} 21. b4 {[%emt 0:00:42]} Be6 {[%emt 0:01:47]} 22. Nb3 {[%emt 0:01:19]} f6 {[%emt 0:01:01]} 23. Nd4 {[%emt 0:04:03]} (23. Bc5 $14 Kf7 24. Bxe7 Kxe7 25. exf6+ Kf7 26. Nc5) 23... Kf7 {[%emt 0:00:04]} 24. f4 {[%emt 0:01:21]} gxf4 {[%emt 0:01:10]} 25. Bxf4 {[%emt 0:00:31]} c5 {[%emt 0:00:02]} 26. bxc5 {[%emt 0:01:15]} Bxc5 {[%emt 0:00:20]} 27. exf6 {[%emt 0:00:18]} Kxf6 {[%emt 0:00:58]} 28. Rf1 {[%emt 0:00:33] And now Bd6+ would win.} Kg6 {[%emt 0:01:21]} 29. Rab1 {[%emt 0:01:28][%cal Of4d6]} Bd7 {[%emt 0:00:28]} 30. Rb7 {[%emt 0:00:52]} (30. Be5 $1 $11) 30... Bc6 $36 {[%emt 0:00:26][%mdl 2048] Black is really pushing. This bishop pair is nice. Black continues to play with concentration.} (30... Bxa4 31. Be5 Rf8 32. Rg7+ Kh6 33. h4 $14) 31. Rb2 {[%emt 0:02:25]} Bxa4 {[%emt 0:00:20]} 32. Kh1 {[%emt 0:02:19]} (32. Be3 $17 {was called for.}) 32... Bxd4 {[%emt 0:00:36]} 33. cxd4 {[%emt 0:00:02]} Bb5 {[%emt 0:00:10]} 34. Ra1 {[%emt 0:01:44]} Rf8 {[%emt 0:00:41]} 35. Bd6 {[%emt 0:00:42]} Rfd8 {[%emt 0:02:26]} 36. Bc7 {[%emt 0:01:59]} (36. Bf4 $17) 36... Re8 $1 $19 {[%emt 0:00:26]} 37. Be5 {[%emt 0:01:09]} (37. Kg1 $142) 37... e3 {[%emt 0:01:03][%cal Be4e3,Be3e2][%mdl 32] Strongly threatening ...e2.} 38. Rb3 $2 {[%emt 0:00:43] [#]} (38. Kg1 Rac8 39. g3) 38... Rxe5 $1 {[%emt 0:02:21][%mdl 512]} 39. dxe5 {[%emt 0:00:07][%mdl 4096] Endgame [#] KRR-KRB} d4 $1 {[%emt 0:00:05]} 40. Rb4 {[%emt 0:00:00]} Rd8 {[%emt 0:00:00] aiming for ...d3.} 41. h3 {[%emt 0:04:18]} e2 {[%emt 0:03:11] ( -> ...d3)} 42. Rb2 {[%emt 0:02:28]} Rf8 {[%emt 0:00:32]} 43. Kh2 {[%emt 0:00:20]} Rf1 {[%emt 0:00:32]} (43... d3 $142 44. Rbb1 d2) 44. Rbb1 {[%emt 0:00:11]} Rxb1 {[%emt 0:00:12]} 45. Rxb1 {[%emt 0:00:01]} d3 {[%emt 0:00:06] Weighted Error Value: White=0.75/Black=0.20 (precise)} 0-1

[Event "Romanian Superleague 2022"]
[Site "Oradea"]
[Date "2022.09.25"]
[Round "5.1"]
[White "Efimenko, Zahar"]
[Black "Tarlev, Konstantin"]
[Result "1/2-1/2"]
[ECO "B31"]
[WhiteElo "2599"]
[BlackElo "2576"]
[Annotator "TA"]
[PlyCount "52"]
[EventDate "2022.09.21"]
[EventType "team-tourn"]
[EventCountry "ROU"]
[SourceTitle "playchess.com"]
[Source "ChessBase"]
[SourceQuality "1"]
[TimeControl "40/5400+30:1800+30"]

{[%evp 9,52,13,19,-11,6,0,11,11,15,0,21,-9,-6,-6,0,-36,-37,-39,-25,-41,-41,-43,-29,-38,-40,-24,-31,-26,-27,-50,-49,-58,-41,-44,-54,-52,-36,-70,-71,-66,-55,-58,-65,-61,-55]} 1. e4 {[%emt 0:00:36]} c5 {[%emt 0:05:40]} 2. Nf3 {[%emt 0:00:14]} Nc6 {[%emt 0:00:42]} 3. Bb5 {[%emt 0:01:32]} g6 {[%emt 0:00:42]} 4. O-O {[%emt 0:00:44]} Bg7 {[%emt 0:00:18]} 5. Nc3 {[%emt 0:02:16]} e5 {[%emt 0:03:26]} 6. Nd5 {[%emt 0:00:37] B31: Sicilian: 2...Nc6 3 Bb5 g6.} Nge7 {[%emt 0:01:25]} 7. d3 {[%emt 0:01:12]} O-O {[%emt 0:08:39]} 8. Bc4 {[%emt 0:02:16] The position is equal.} h6 {[%emt 0:07:41]} 9. c3 {[%emt 0:01:58]} d6 {[%emt 0:00:33] [#]} 10. Rb1 $146 {[%emt 0:02:18]} ({Predecessor:} 10. Be3 Kh7 11. d4 Nxd5 12. Bxd5 cxd4 13. cxd4 Bg4 14. Bxc6 bxc6 15. dxe5 Bxe5 16. h3 Bxf3 17. Qxf3 Bxb2 {0-1 (41) Santos Ruiz,M (2427)-Li,C (2751) Caleta 2016}) 10... Nxd5 {[%emt 0:08:35]} 11. Bxd5 {[%emt 0:03:40]} Ne7 {[%emt 0:03:32]} 12. Bc4 {[%emt 0:04:54]} d5 {[%emt 0:00:55]} 13. exd5 {[%emt 0:01:46]} Nxd5 {[%emt 0:00:04]} 14. Re1 {[%emt 0:01:29]} Qd6 {[%emt 0:10:33]} 15. Nd2 {[%emt 0:18:02]} Be6 {[%emt 0:11:50]} 16. Qb3 {[%emt 0:00:34]} Rab8 {[%emt 0:00:26][%cal Ob7b5]} 17. Ne4 {[%emt 0:01:30]} Qc6 {[%emt 0:02:30] [#] ...b5 is the strong threat.} 18. a4 {[%emt 0:00:05][%cal Oc1h6] Against b5} Rfd8 {[%emt 0:01:54]} 19. Be3 {[%emt 0:12:44]} b6 {[%emt 0:00:18] And now ...f5 would win.} 20. f3 {[%emt 0:09:46]} a6 {[%emt 0:04:04]} 21. Qc2 {[%emt 0:02:57]} Nxe3 {[%emt 0:05:08]} 22. Rxe3 {[%emt 0:00:11]} Bc8 {[%emt 0:00:03]} 23. b4 {[%emt 0:02:59]} cxb4 {[%emt 0:05:18]} 24. cxb4 {[%emt 0:00:21][%cal Oc4f7] [#] Black must now prevent Bxf7+!} Qd7 {[%emt 0:04:03] Black is slightly better.} 25. Ree1 {[%emt 0:02:51]} Kh7 {[%emt 0:00:54]} 26. b5 {[%emt 0:02:15]} f5 {[%emt 0:01:30] Weighted Error Value: White=0.10 (very precise) /Black=0.03 (flawless)} 1/2-1/2

[Event "Romanian Superleague 2022"]
[Site "Oradea"]
[Date "2022.09.25"]
[Round "5.2"]
[White "Ionescu, Constantin"]
[Black "Baklan, Vladimir"]
[Result "1/2-1/2"]
[ECO "E16"]
[WhiteElo "2415"]
[BlackElo "2578"]
[Annotator "RC"]
[PlyCount "43"]
[EventDate "2022.09.21"]
[EventType "team-tourn"]
[EventCountry "ROU"]
[SourceTitle "playchess.com"]
[Source "ChessBase"]
[SourceQuality "1"]
[TimeControl "40/5400+30:1800+30"]

1. d4 {[%emt 0:00:04]} Nf6 {[%emt 0:00:07]} 2. c4 {[%emt 0:00:07]} e6 {[%emt 0:00:06]} 3. Nf3 {[%emt 0:00:49]} Bb4+ {[%emt 0:01:31]} 4. Nbd2 {[%emt 0:01:32]} O-O {[%emt 0:02:31]} 5. g3 {[%emt 0:02:50]} b6 {[%emt 0:09:09]} 6. Bg2 {[%emt 0:00:21]} Bb7 {[%emt 0:00:04]} 7. O-O {[%emt 0:00:29]} h6 {[%emt 0:00:51]} 8. Qc2 {[%emt 0:01:51]} Bxd2 {[%emt 0:06:31]} 9. Bxd2 {[%emt 0:00:16]} d6 {[%emt 0:00:03]} 10. Bc3 {[%emt 0:06:54]} Be4 {[%emt 0:01:43]} 11. Qc1 {[%emt 0:00:30]} Nbd7 {[%emt 0:00:17]} 12. b3 {[%emt 0:00:51]} a6 {[%emt 0:01:16]} 13. Re1 {[%emt 0:02:15]} Ra7 {[%emt 0:15:16]} 14. Bf1 {[%emt 0:04:44]} Ba8 {[%emt 0:02:16]} 15. Nd2 {[%emt 0:00:33]} c5 {[%emt 0:00:04]} 16. e4 {[%emt 0:02:38]} cxd4 {[%emt 0:02:20]} 17. Bxd4 {[%emt 0:00:13]} e5 {[%emt 0:00:12]} 18. Bc3 {[%emt 0:01:25]} Nc5 {[%emt 0:00:25]} 19. Qc2 {[%emt 0:00:26]} Qb8 {[%emt 0:05:02]} 20. b4 {[%emt 0:09:14]} Ne6 {[%emt 0:00:58]} 21. Qb2 {[%emt 0:02:06]} Nh7 {[%emt 0:03:04]} 22. h4 {[%emt 0:01:45]} 1/2-1/2